fUSD/lending_fUSD_20250828
["ID","MTS","AMOUNT","RATE_DAILY","PERIOD"]
[381824648,1756360231592,-500.0,0.00016344,2]
[381824649,1756360231601,-500.0,0.00016344,2]
[381824650,1756360231610,-500.0,0.00016344,2]
[381824651,1756360231620,-295.6093436,0.00016344,2]
[381824652,1756360231631,-204.3906564,0.00016344,2]
[381824653,1756360231641,-500.0,0.00016344,2]
[381824654,1756360231650,-171.18382112,0.00016344,2]
[381824655,1756360231667,-328.81617888,0.00016344,2]
[381824656,1756360231676,-500.0,0.00016344,2]
[381824657,1756360231686,-500.0,0.00016344,2]
[381824658,1756360231695,-500.0,0.00016344,2]
[381824659,1756360231705,-500.0,0.00016344,2]
[381824660,1756360231714,-500.0,0.00016344,2]
[381824661,1756360231724,-500.0,0.00016344,2]
[381824662,1756360231733,-500.0,0.00016344,2]
[381824663,1756360231743,-500.0,0.00016344,2]
[381824664,1756360231753,-500.0,0.00016344,2]
[381824665,1756360231762,-500.0,0.00016344,2]
[381824666,1756360231772,-500.0,0.00016344,2]
[381824667,1756360231782,-500.0,0.00016344,2]
[381824668,1756360231791,-500.0,0.00016344,2]
[381824669,1756360231800,-500.0,0.00016344,2]
[381824670,1756360231810,-500.0,0.00016344,2]
[381824671,1756360231819,-500.0,0.00016344,2]
[381824672,1756360231828,-500.0,0.00016344,2]
[381824673,1756360231838,-500.0,0.00016344,2]
[381824674,1756360231847,-500.0,0.00016344,2]
[381824675,1756360231856,-500.0,0.00016344,2]
[381824676,1756360231866,-500.0,0.00016344,2]
[381824677,1756360231876,-500.0,0.00016344,2]
[381824678,1756360231885,-500.0,0.00016344,2]
[381824679,1756360231895,-500.0,0.00016344,2]
[381824680,1756360231904,-500.0,0.00016344,2]
[381824681,1756360231914,-500.0,0.00016344,2]
[381824683,1756360231924,-500.0,0.00016344,2]
[381824685,1756360231940,-500.0,0.00016344,2]
[381824687,1756360231952,-500.0,0.00016344,2]
[381824690,1756360231973,-500.0,0.00016344,2]
[381824691,1756360231990,-500.0,0.00016344,2]
[381824694,1756360232005,-500.0,0.00016344,2]
[381824695,1756360232015,-158.86424232,0.00016344,2]
[381824697,1756360232025,-500.0,0.00016344,2]
[381824699,1756360232035,-500.0,0.00016344,2]
[381824700,1756360232044,-500.0,0.00016344,2]
[381824701,1756360232053,-500.0,0.00016344,2]
[381824702,1756360232063,-500.0,0.00016344,2]
[381824703,1756360232073,-500.0,0.00016344,2]
[381824704,1756360232083,-500.0,0.00016344,2]
[381824705,1756360232092,-500.0,0.00016344,2]
[381824706,1756360232101,-500.0,0.00016344,2]
[381824707,1756360232110,-500.0,0.00016344,2]
[381824708,1756360232120,-500.0,0.00016344,2]
[381824709,1756360232129,-500.0,0.00016344,2]
[381824710,1756360232139,-500.0,0.00016344,2]
[381824711,1756360232148,-500.0,0.00016344,2]
[381824712,1756360232158,-500.0,0.00016344,2]
[381824713,1756360232167,-500.0,0.00016344,2]
[381824714,1756360232176,-500.0,0.00016344,2]
[381824715,1756360232186,-500.0,0.00016344,2]
[381824716,1756360232195,-500.0,0.00016344,2]
[381824717,1756360232204,-500.0,0.00016344,2]
[381824718,1756360232214,-500.0,0.00016344,2]
[381824719,1756360232223,-500.0,0.00016344,2]
[381824720,1756360232233,-500.0,0.00016344,2]
[381824721,1756360232243,-500.0,0.00016344,2]
[381824722,1756360232253,-500.0,0.00016344,2]
[381824723,1756360232262,-500.0,0.00016344,2]
[381824724,1756360232271,-500.0,0.00016344,2]
[381824725,1756360232281,-500.0,0.00016344,2]
[381824726,1756360232290,-500.0,0.00016344,2]
[381824727,1756360232301,-300.0,0.00016344,2]
[381824728,1756360232310,-500.0,0.00016344,2]
[381824729,1756360232323,-500.0,0.00016344,2]
[381824730,1756360232332,-500.0,0.00016344,2]
[381824731,1756360232341,-500.0,0.00016344,2]
[381824732,1756360232351,-500.0,0.00016344,2]
[381824733,1756360232361,-500.0,0.00016344,2]
[381824734,1756360232370,-500.0,0.00016344,2]
[381824735,1756360232380,-500.0,0.00016344,2]
[381824736,1756360232391,-500.0,0.00016344,2]
[381824737,1756360232400,-523.0,0.00016345,2]
[381824738,1756360232411,-151.80910345,0.00016355,2]
[381824739,1756360232420,-2398.0739,0.00016411,2]
[381824740,1756360232430,-500.0,0.00016438,2]
[381824741,1756360232439,-200.0,0.00016746,2]
[381824742,1756360232448,-190.83,0.00016789,2]
[381824743,1756360232458,-160.0,0.0001688,7]
[381824744,1756360232467,-1000.0,0.00016881,2]
[381824745,1756360232476,-8094.29,0.00016922,2]
[381824746,1756360232487,-999.99,0.00016922,2]
[381824747,1756360232496,-150.99,0.00016922,2]
[381824748,1756360232506,-299.99,0.00016922,4]
[381824749,1756360232515,-196.94,0.0001698,2]
[381824750,1756360232524,-248.71531821,0.00017082,2]
[381824751,1756360232533,-250.0,0.00017205,2]
[381824752,1756360232543,-168.0,0.00017404,2]
[381824753,1756360232552,-151.0,0.00017486,2]
[381824754,1756360232561,-151.0,0.00017507,2]
[381824755,1756360232571,-151.0,0.00017528,2]
[381824756,1756360232580,-151.0,0.00017551,2]
[381824757,1756360232589,-168.0,0.00017784,2]
[381824758,1756360232599,-171.6439405,0.00017798,2]
[381824759,1756360232608,-200.0,0.00017818,2]
[381824760,1756360232617,-200.0,0.00017818,2]
[381824761,1756360232626,-500.0,0.00017818,2]
[381824762,1756360232636,-151.0,0.00017818,2]
[381824763,1756360232645,-151.0,0.00017818,2]
[381824764,1756360232655,-159.77187403,0.00017818,2]
[381824765,1756360232665,-151.0,0.00017818,2]
[381824766,1756360232717,-500.0,0.00017818,2]
[381824767,1756360232726,-500.0,0.00017818,2]
[381824768,1756360232736,-492.85060238,0.00017818,2]
[381824769,1756360232746,-2440.79601479,0.00017829,2]
[381824770,1756360232759,-4872.75233275,0.00017829,2]
[381824771,1756360232775,-4714.53002011,0.00017829,2]
[381824772,1756360232795,-44613.13248405,0.00017829,2]
[381824773,1756360232804,-400.0,0.00017839,2]
[381824774,1756360232814,-400.0,0.00017839,2]
[381824775,1756360232823,-400.0,0.00017839,2]
[381824776,1756360232832,-400.0,0.00017839,2]
[381824777,1756360232841,-400.0,0.00017839,2]
[381824778,1756360232850,-400.0,0.00017839,2]
[381824779,1756360232859,-400.0,0.00017839,2]
[381824780,1756360232867,-400.0,0.00017839,2]
[381824781,1756360232877,-400.0,0.00017839,2]
[381824782,1756360232887,-400.0,0.00017839,2]
[381824783,1756360232896,-400.0,0.00017839,2]
[381824784,1756360232906,-400.0,0.00017839,2]
[381824785,1756360232915,-400.0,0.00017839,2]
[381824786,1756360232925,-400.0,0.00017839,2]
[381824787,1756360232934,-400.0,0.00017839,2]
[381824788,1756360232943,-400.0,0.00017839,2]
[381824789,1756360232953,-400.0,0.00017839,2]
[381824790,1756360232962,-400.0,0.00017839,2]
[381824791,1756360232971,-400.0,0.00017839,2]
[381824792,1756360232980,-400.0,0.00017839,2]
[381824793,1756360232990,-200.93132624,0.00017839,2]
[381824794,1756360233000,-400.0,0.00017839,2]
[381824795,1756360233009,-400.0,0.00017839,2]
[381824796,1756360233019,-400.0,0.00017839,2]
[381824797,1756360233028,-400.0,0.00017839,2]
[381824798,1756360233038,-400.0,0.00017839,2]
[381824799,1756360233048,-446.90779052,0.00017839,2]
[381824800,1756360233057,-400.0,0.00017839,2]
[381824801,1756360233067,-400.0,0.00017839,2]
[381824802,1756360233076,-400.0,0.00017839,2]
[381824803,1756360233086,-400.0,0.00017839,2]
[381824804,1756360233095,-401.81089097,0.00017839,2]
[381824805,1756360233104,-400.0,0.00017839,2]
[381824806,1756360233113,-400.0,0.00017839,2]
[381824807,1756360233122,-400.0,0.00017839,2]
[381824808,1756360233131,-413.35979029,0.00017839,2]
[381824809,1756360233145,-400.0,0.00017839,2]
[381824810,1756360233158,-400.0,0.00017839,2]
[381824811,1756360233167,-451.17784302,0.00017839,2]
[381824812,1756360233177,-400.0,0.00017839,2]
[381824813,1756360233187,-426.90256501,0.00017839,2]
[381824814,1756360233196,-404.98999711,0.00017839,2]
[381824815,1756360233205,-402.68780856,0.00017839,2]
[381824816,1756360233214,-400.0,0.00017839,2]
[381824817,1756360233224,-534.78,0.00017839,2]
[381824818,1756360233232,-500.0,0.00017873,2]
[381824819,1756360233242,-504.44412173,0.00017873,2]
[381824820,1756360233252,-505.20891828,0.00017873,2]
[381824821,1756360233261,-500.0,0.00017873,2]
[381824822,1756360233270,-500.0,0.00017873,2]
[381824823,1756360233280,-250.0,0.00017873,2]
[381824824,1756360233289,-400.0,0.00017897,2]
[381824825,1756360233298,-400.0,0.00017897,2]
[381824826,1756360233308,-400.0,0.00017897,2]
[381824827,1756360233321,-400.0,0.00017897,2]
[381824828,1756360233330,-400.0,0.00017898,2]
[381824829,1756360233340,-400.0,0.00017898,2]
[381824830,1756360233349,-400.0,0.00017898,2]
[381824831,1756360233359,-400.0,0.00017898,2]
[381824832,1756360233369,-400.0,0.00017898,2]
[381824833,1756360233378,-400.0,0.00017898,2]
[381824834,1756360233388,-400.0,0.00017898,2]
[381824835,1756360233398,-269.62836603,0.00017898,2]
[381824836,1756360233408,-400.0,0.00017898,2]
[381824837,1756360233417,-400.0,0.00017898,2]
[381824838,1756360233426,-400.0,0.00017898,2]
[381824839,1756360233435,-400.0,0.00017898,2]
[381824840,1756360233445,-400.0,0.00017898,2]
[381824841,1756360233454,-400.0,0.00017898,2]
[381824842,1756360233463,-400.0,0.00017898,2]
[381824843,1756360233473,-400.0,0.00017898,2]
[381824844,1756360233482,-239.87091037,0.00017898,2]
[381824845,1756360233493,-400.0,0.00017898,2]
[381824846,1756360233502,-400.0,0.00017898,2]
[381824847,1756360233511,-400.0,0.00017898,2]
[381824848,1756360233520,-400.0,0.00017898,2]
[381824849,1756360233530,-400.0,0.00017898,2]
[381824850,1756360233539,-400.0,0.00017898,2]
[381824851,1756360233548,-400.0,0.00017898,2]
[381824852,1756360233558,-400.0,0.00017898,2]
[381824853,1756360233568,-409.0437749,0.00017898,2]
[381824854,1756360233577,-286.73055081,0.00017898,2]
[381824855,1756360233586,-400.0,0.00017898,2]
[381824856,1756360233596,-400.0,0.00017898,2]
[381824857,1756360233605,-400.0,0.00017898,2]
[381824858,1756360233614,-400.0,0.00017898,2]
[381824859,1756360233624,-400.0,0.00017898,2]
[381824860,1756360233633,-400.0,0.00017898,2]
[381824861,1756360233642,-400.0,0.00017898,2]
[381824862,1756360233651,-400.0,0.00017898,2]
[381824863,1756360233660,-400.0,0.00017898,2]
[381824864,1756360233669,-400.0,0.00017898,2]
[381824865,1756360233679,-210.54005115,0.00017898,2]
[381824866,1756360233688,-400.0,0.00017898,2]
[381824867,1756360233697,-400.0,0.00017898,2]
[381824868,1756360233707,-400.0,0.00017898,2]
[381824869,1756360233716,-400.0,0.00017898,2]
[381824870,1756360233725,-378.25,0.00017898,2]
[381824871,1756360233734,-400.0,0.00017898,2]
[381824872,1756360233743,-400.0,0.00017898,2]
[381824873,1756360233753,-400.0,0.00017898,2]
[381824874,1756360233762,-400.0,0.00017898,2]
[381824875,1756360233771,-249.77,0.00017898,2]
[381824876,1756360233781,-405.98,0.00017898,2]
[381824877,1756360233790,-333.84,0.00017898,2]
[381824878,1756360233799,-314.47259422,0.00017898,2]
[381824879,1756360233808,-400.0,0.00017898,2]
[381824880,1756360233817,-400.0,0.00017898,2]
[381824881,1756360233826,-400.0,0.00017898,2]
[381824882,1756360233835,-400.0,0.00017898,2]
[381824883,1756360233844,-400.0,0.00017898,2]
[381824884,1756360233853,-400.0,0.00017898,2]
[381824885,1756360233862,-400.0,0.00017898,2]
[381824886,1756360233872,-216.17,0.00017898,2]
[381824887,1756360233881,-400.0,0.00017898,2]
[381824888,1756360233890,-439.44,0.00017898,2]
[381824889,1756360233899,-400.0,0.00017898,2]
[381824890,1756360233909,-400.0,0.00017898,2]
[381824891,1756360233918,-400.0,0.00017898,2]
[381824892,1756360233928,-452.32,0.00017898,2]
[381824893,1756360233937,-400.0,0.00017898,2]
[381824894,1756360233946,-698.85,0.00017898,2]
[381824895,1756360233956,-324.0,0.00017898,2]
[381824896,1756360233965,-400.0,0.00017898,2]
[381824897,1756360233974,-343.63,0.00017898,2]
[381824898,1756360233984,-400.0,0.00017898,2]
[381824899,1756360233993,-400.0,0.00017898,2]
[381824900,1756360234003,-400.0,0.00017898,2]
[381824901,1756360234012,-400.0,0.00017898,2]
[381824902,1756360234022,-400.0,0.00017898,2]
[381824903,1756360234031,-400.0,0.00017898,2]
[381824904,1756360234041,-400.0,0.00017899,2]
[381824905,1756360234050,-400.0,0.00017899,2]
[381824906,1756360234059,-400.0,0.00017899,2]
[381824907,1756360234069,-168.0,0.00017913,2]
[381824908,1756360234078,-168.0,0.00017932,2]
[381824909,1756360234087,-480.0,0.00017951,2]
[381824910,1756360234097,-959.89,0.00017998,2]
[381824911,1756360234106,-400.0,0.00017998,2]
[381824912,1756360234115,-525.72,0.00017998,2]
[381824913,1756360234125,-400.0,0.00017998,2]
[381824914,1756360234134,-400.0,0.00017998,2]
[381824915,1756360234143,-400.0,0.00017998,2]
[381824916,1756360234153,-440.6,0.00017998,2]
[381824917,1756360234163,-400.0,0.00017998,2]
[381824918,1756360234173,-378.75,0.00017998,2]
[381824919,1756360234182,-376.55,0.00017998,2]
[381824920,1756360234191,-400.0,0.00017998,2]
[381824921,1756360234201,-400.0,0.00017998,2]
[381824922,1756360234211,-400.0,0.00017998,2]
[381824923,1756360234221,-1244.44,0.00018,2]
[381824924,1756360234230,-900.0,0.00018,2]
[381824925,1756360234242,-900.0,0.00018,2]
[381824926,1756360234251,-900.0,0.00018,2]
[381824927,1756360234260,-900.0,0.00018,2]
[381824928,1756360234270,-900.0,0.00018,2]
[381824929,1756360234279,-900.0,0.00018,2]
[381824930,1756360234288,-900.0,0.00018,2]
[381824931,1756360234297,-900.0,0.00018,2]
[381824932,1756360234306,-168.0,0.00018022,2]
[381824933,1756360234318,-300.0,0.00018103,2]
[381824934,1756360234327,-400.0,0.00018113,2]
[381824935,1756360234337,-400.0,0.00018113,2]
[381824936,1756360234346,-400.0,0.00018113,2]
[381824937,1756360234355,-400.0,0.00018113,2]
[381824938,1756360234365,-400.0,0.00018113,2]
[381824939,1756360234374,-400.0,0.00018113,2]
[381824940,1756360234383,-400.0,0.00018113,2]
[381824941,1756360234393,-400.0,0.00018113,2]
[381824942,1756360234404,-400.0,0.00018113,2]
[381824943,1756360234415,-165.83647921,0.00018113,2]
[381824944,1756360234424,-400.0,0.00018113,2]
[381824945,1756360234434,-400.0,0.00018113,2]
[381824946,1756360234443,-22.22179439,0.00018113,2]
[381824947,1756360234456,-373.20820561,0.00018113,2]
[381824948,1756360234466,-399.50922673,0.00018113,2]
[381824949,1756360234475,-400.0,0.00018113,2]
[381824950,1756360234485,-400.0,0.00018113,2]
[381824951,1756360234494,-400.0,0.00018113,2]
[381824952,1756360234505,-400.0,0.00018113,2]
[381824953,1756360234514,-266.29,0.00018113,2]
[381824954,1756360234524,-400.0,0.00018113,2]
[381824955,1756360234534,-258.63,0.00018113,2]
[381824956,1756360234542,-400.0,0.00018113,2]
[381824957,1756360234552,-221.68,0.00018113,2]
[381824958,1756360234561,-208.27,0.00018113,2]
[381824959,1756360234570,-229.92,0.00018113,2]
[381824960,1756360234579,-400.0,0.00018113,2]
[381824961,1756360234589,-400.0,0.00018113,2]
[381824962,1756360234598,-400.0,0.00018113,2]
[381824963,1756360234607,-200.46,0.00018113,2]
[381824964,1756360234616,-227.36,0.00018113,2]
[381824965,1756360234626,-400.0,0.00018171,2]
[381824966,1756360234635,-444.73599818,0.00018171,2]
[381824967,1756360234644,-400.0,0.00018171,2]
[381824968,1756360234654,-400.0,0.00018171,2]
[381824969,1756360234663,-400.0,0.00018171,2]
[381824970,1756360234673,-400.0,0.00018171,2]
[381824971,1756360234682,-400.0,0.00018171,2]
[381824972,1756360234691,-400.0,0.00018171,2]
[381824973,1756360234700,-400.0,0.00018171,2]
[381824974,1756360234709,-400.0,0.00018171,2]
[381824975,1756360234718,-400.0,0.00018171,2]
[381824976,1756360234727,-400.0,0.00018171,2]
[381824977,1756360234736,-400.0,0.00018171,2]
[381824978,1756360234747,-400.0,0.00018171,2]
[381824979,1756360234756,-400.0,0.00018171,2]
[381824980,1756360234766,-400.0,0.00018171,2]
[381824981,1756360234775,-295.05,0.00018171,2]
[381824982,1756360234784,-400.0,0.00018171,2]
[381824983,1756360234792,-400.0,0.00018171,2]
[381824984,1756360234802,-400.0,0.00018171,2]
[381824985,1756360234811,-400.0,0.00018171,2]
[381824986,1756360234820,-400.0,0.00018171,2]
[381824987,1756360234829,-400.0,0.00018171,2]
[381824988,1756360234838,-418.76,0.00018171,2]
[381824989,1756360234847,-174.02,0.00018171,2]
[381824990,1756360234856,-381.54119909,0.00018171,2]
[381824991,1756360234865,-400.0,0.00018171,2]
[381824992,1756360234874,-400.0,0.00018171,2]
[381824993,1756360234883,-400.0,0.00018171,2]
[381824994,1756360234892,-400.0,0.00018171,2]
[381824995,1756360234901,-400.0,0.00018171,2]
[381824996,1756360234910,-400.0,0.00018171,2]
[381824997,1756360234919,-400.0,0.00018171,2]
[381824998,1756360234930,-400.0,0.00018171,2]
[381824999,1756360234941,-400.0,0.00018171,2]
[381825000,1756360234951,-400.0,0.00018171,2]
[381825001,1756360234960,-400.0,0.00018171,2]
[381825002,1756360234970,-268.28774341,0.00018171,2]
[381825003,1756360234979,-400.0,0.00018171,2]
[381825004,1756360234988,-400.0,0.00018171,2]
[381825005,1756360234997,-395.41,0.00018171,2]
[381825006,1756360235007,-400.0,0.00018171,2]
[381825007,1756360235016,-319.37,0.00018171,2]
[381825008,1756360235025,-492.44875904,0.00018171,2]
[381825009,1756360235034,-370.52657866,0.00018171,2]
[381825010,1756360235043,-317.64985394,0.00018171,2]
[381825011,1756360235052,-400.0,0.00018171,2]
[381825012,1756360235061,-237.375839,0.00018171,2]
[381825013,1756360235070,-400.0,0.00018171,2]
[381825014,1756360235079,-400.0,0.00018171,2]
[381825015,1756360235088,-400.0,0.00018171,2]
[381825016,1756360235097,-400.0,0.00018171,2]
[381825017,1756360235106,-468.699291,0.00018171,2]
[381825018,1756360235115,-400.0,0.00018171,2]
[381825019,1756360235124,-821.12,0.00018171,2]
[381825020,1756360235134,-400.0,0.00018171,2]
[381825021,1756360235143,-400.0,0.00018171,2]
[381825022,1756360235152,-336.83,0.00018171,2]
[381825023,1756360235161,-400.0,0.00018171,2]
[381825024,1756360235170,-150.724341,0.00018171,2]
[381825025,1756360235179,-400.0,0.00018171,2]
[381825026,1756360235188,-283.42,0.00018171,2]
[381825027,1756360235197,-400.0,0.00018171,2]
[381825028,1756360235206,-377.15432597,0.00018171,2]
[381825029,1756360235215,-400.0,0.00018171,2]
[381825030,1756360235224,-400.0,0.00018171,2]
[381825031,1756360235233,-400.0,0.00018171,2]
[381825032,1756360235242,-400.0,0.00018171,2]
[381825033,1756360235252,-400.0,0.00018171,2]
[381825034,1756360235261,-400.0,0.00018171,2]
[381825035,1756360235270,-400.0,0.00018171,2]
[381825036,1756360235279,-400.0,0.00018171,2]
[381825037,1756360235288,-361.43319044,0.00018171,2]
[381825038,1756360235297,-401.59968714,0.00018171,2]
[381825039,1756360235306,-325.26,0.00018171,2]
[381825040,1756360235318,-401.35363539,0.00018171,2]
[381825041,1756360235327,-400.0,0.00018171,2]
[381825042,1756360235336,-400.0,0.00018171,2]
[381825043,1756360235345,-400.0,0.00018171,2]
[381825044,1756360235355,-290.05870485,0.00018171,2]
[381825045,1756360235364,-400.0,0.00018171,2]
[381825046,1756360235373,-400.0,0.00018171,2]
[381825047,1756360235382,-400.0,0.00018171,2]
[381825048,1756360235393,-400.0,0.00018171,2]
[381825049,1756360235402,-400.0,0.00018171,2]
[381825050,1756360235411,-400.0,0.00018171,2]
[381825051,1756360235420,-400.0,0.00018171,2]
[381825052,1756360235429,-400.0,0.00018171,2]
[381825053,1756360235438,-400.0,0.00018171,2]
[381825054,1756360235447,-400.0,0.00018171,2]
[381825055,1756360235456,-400.0,0.00018172,2]
[381825056,1756360235465,-400.0,0.00018172,2]
[381825057,1756360235475,-400.0,0.00018172,2]
[381825058,1756360235484,-400.0,0.00018172,2]
[381825059,1756360235493,-400.0,0.00018172,2]
[381825060,1756360235501,-400.0,0.00018172,2]
[381825061,1756360235510,-400.0,0.00018172,2]
[381825062,1756360235519,-400.0,0.00018172,2]
[381825063,1756360235528,-400.0,0.00018172,2]
[381825064,1756360235538,-400.0,0.00018172,2]
[381825065,1756360235546,-400.0,0.00018172,2]
[381825066,1756360235555,-400.0,0.00018172,2]
[381825067,1756360235564,-400.0,0.00018172,2]
[381825068,1756360235573,-400.0,0.00018172,2]
[381825069,1756360235582,-400.0,0.00018172,2]
[381825070,1756360235591,-400.0,0.00018172,2]
[381825071,1756360235600,-400.0,0.00018172,2]
[381825072,1756360235609,-400.0,0.00018172,2]
[381825073,1756360235618,-400.0,0.00018172,2]
[381825074,1756360235627,-400.0,0.00018172,2]
[381825075,1756360235638,-216.33515474,0.00018172,2]
[381825076,1756360235648,-400.0,0.00018172,2]
[381825077,1756360235658,-400.0,0.00018172,2]
[381825078,1756360235667,-400.0,0.00018172,2]
[381825079,1756360235676,-511.80996618,0.00018172,2]
[381825080,1756360235687,-400.0,0.00018172,2]
[381825081,1756360235696,-400.0,0.00018172,2]
[381825082,1756360235705,-400.0,0.00018172,2]
[381825083,1756360235714,-400.0,0.00018172,2]
[381825084,1756360235723,-400.0,0.00018172,2]
[381825085,1756360235734,-400.0,0.00018172,2]
[381825086,1756360235744,-400.0,0.00018172,2]
[381825087,1756360235753,-400.0,0.00018172,2]
[381825088,1756360235762,-514.50739871,0.00018172,2]
[381825089,1756360235772,-400.0,0.00018172,2]
[381825090,1756360235781,-400.0,0.00018172,2]
[381825091,1756360235790,-400.0,0.00018172,2]
[381825092,1756360235799,-400.0,0.00018172,2]
[381825093,1756360235809,-400.0,0.00018172,2]
[381825094,1756360235819,-400.0,0.00018172,2]
[381825095,1756360235828,-502.02353358,0.00018172,2]
[381825096,1756360235837,-400.0,0.00018172,2]
[381825097,1756360235846,-413.6,0.00018172,2]
[381825098,1756360235855,-400.0,0.00018172,2]
[381825099,1756360235864,-303.19945479,0.00018172,2]
[381825100,1756360235874,-400.0,0.00018172,2]
[381825101,1756360235884,-400.0,0.00018172,2]
[381825102,1756360235893,-400.0,0.00018172,2]
[381825103,1756360235903,-283.87907294,0.00018172,2]
[381825104,1756360235912,-400.0,0.00018172,2]
[381825105,1756360235921,-370.98,0.00018172,2]
[381825106,1756360235931,-414.50233804,0.00018172,2]
[381825107,1756360235940,-400.0,0.00018172,2]
[381825108,1756360235949,-698.85,0.00018172,2]
[381825109,1756360235959,-400.0,0.00018172,2]
[381825110,1756360235968,-275.45,0.00018172,2]
[381825111,1756360235977,-446.11,0.00018172,2]
[381825112,1756360235987,-400.0,0.00018172,2]
[381825113,1756360235998,-400.0,0.00018172,2]
[381825114,1756360236007,-400.0,0.00018172,2]
[381825115,1756360236016,-400.0,0.00018172,2]
[381825116,1756360236026,-400.0,0.00018173,2]
[381825117,1756360236035,-400.0,0.00018173,2]
[381825118,1756360236044,-400.0,0.00018173,2]
[381825119,1756360236053,-959.89,0.00018272,2]
[381825120,1756360236063,-400.0,0.00018272,2]
[381825121,1756360236072,-400.0,0.00018272,2]
[381825122,1756360236081,-400.0,0.00018272,2]
[381825123,1756360236092,-400.0,0.00018272,2]
[381825124,1756360236101,-400.0,0.00018272,2]
[381825125,1756360236110,-400.0,0.00018272,2]
[381825126,1756360236120,-400.0,0.00018272,2]
[381825127,1756360236129,-196.16612319,0.00018272,2]
[381825128,1756360236139,-152.77,0.00018272,2]
[381825129,1756360236148,-349.08355769,0.00018276,2]
[381825130,1756360236156,-18591.00367523,0.00018356,2]
[381825131,1756360237481,-400.0,0.00017898,2]
[381825132,1756360237491,-400.0,0.00018171,2]
[381825133,1756360237502,-400.0,0.00018171,2]
[381825134,1756360237512,-400.0,0.00018172,2]
[381825135,1756360237522,-19716.2803917,0.00018356,2]
[381825136,1756360237540,-14567.22657667,0.00018356,2]
[381825137,1756360237596,-26445.6693564,0.00018356,2]
[381825138,1756360237606,-168.0,0.00018376,2]
[381825139,1756360237616,-400.0,0.00018387,2]
[381825140,1756360237626,-359.27219953,0.00018387,2]
[381825141,1756360237635,-400.0,0.00018387,2]
[381825142,1756360237644,-400.0,0.00018387,2]
[381825143,1756360237654,-400.0,0.00018387,2]
[381825144,1756360237663,-400.0,0.00018387,2]
[381825145,1756360237673,-400.0,0.00018387,2]
[381825146,1756360237682,-400.0,0.00018387,2]
[381825147,1756360237692,-400.0,0.00018387,2]
[381825148,1756360237702,-400.0,0.00018387,2]
[381825149,1756360237711,-406.92,0.00018387,2]
[381825150,1756360237721,-288.96,0.00018387,2]
[381825151,1756360237731,-247.06,0.00018387,2]
[381825152,1756360237740,-400.0,0.00018387,2]
[381825153,1756360237750,-400.0,0.00018387,2]
[381825154,1756360237760,-400.0,0.00018387,2]
[381825155,1756360237769,-359.27,0.00018387,2]
[381825156,1756360237779,-248.98,0.00018387,2]